fUST/lending_fUST_20250306
["ID","MTS","AMOUNT","RATE_DAILY","PERIOD"]
[355524422,1741236651896,-500.0,0.00041369,120]
[355524423,1741236651911,-500.0,0.00041369,120]
[355524424,1741236651920,-1478.18,0.00041369,120]
[355524425,1741236651930,-500.0,0.00041369,120]
[355524426,1741236651939,-500.0,0.00041369,120]
[355524427,1741236651949,-500.0,0.00041369,120]
[355524428,1741236651958,-500.0,0.00041369,120]
[355524429,1741236651967,-500.0,0.00041369,120]
[355524430,1741236651976,-508.16143812,0.00041369,120]
[355524431,1741236651986,-500.0,0.00041369,120]
[355524432,1741236651995,-500.0,0.00041369,120]
[355524433,1741236652005,-500.0,0.00041369,120]
[355524434,1741236652015,-500.0,0.00041369,120]
[355524435,1741236652024,-709.56,0.00041369,120]
[355524436,1741236652034,-500.0,0.00041369,120]
[355524437,1741236652043,-500.0,0.00041369,120]
[355524438,1741236652053,-520.88389241,0.00041369,120]
[355524439,1741236652062,-500.0,0.00041369,120]
[355524440,1741236652071,-500.0,0.00041369,120]
[355524441,1741236652081,-500.0,0.00041369,120]
[355524442,1741236652091,-500.0,0.00041369,120]
[355524443,1741236652100,-500.0,0.00041369,120]
[355524444,1741236652109,-500.0,0.00041369,120]
[355524445,1741236652118,-500.0,0.00041369,120]
[355524446,1741236652128,-500.0,0.00041369,120]
[355524447,1741236652137,-980.73,0.00041369,120]
[355524448,1741236652147,-500.0,0.00041369,120]
[355524449,1741236652156,-500.0,0.00041369,120]
[355524450,1741236652165,-500.0,0.00041369,120]
[355524451,1741236652175,-500.0,0.00041369,120]
[355524452,1741236652184,-500.0,0.00041369,2]
[355524453,1741236652193,-500.0,0.00041369,120]
[355524454,1741236652203,-500.0,0.00041369,120]
[355524455,1741236652216,-500.0,0.00041369,120]
[355524456,1741236652225,-500.0,0.00041369,30]
[355524457,1741236652236,-500.0,0.00041369,120]
[355524458,1741236652247,-588.12,0.00041369,120]
[355524459,1741236652256,-500.0,0.00041369,120]
[355524460,1741236652266,-500.0,0.00041369,120]
[355524461,1741236652275,-529.32739376,0.00041369,120]
[355524462,1741236652285,-500.0,0.00041369,120]
[355524463,1741236652295,-500.0,0.00041369,120]
[355524464,1741236652304,-1295.36,0.00041369,120]
[355524465,1741236652314,-500.0,0.00041369,120]
[355524466,1741236652323,-500.0,0.00041369,120]
[355524467,1741236652332,-1186.54,0.00041369,120]
[355524468,1741236652342,-500.0,0.00041369,120]
[355524469,1741236652352,-500.0,0.00041369,120]
[355524470,1741236652462,-500.0,0.00041369,120]
[355524471,1741236652472,-2110.49,0.00041369,120]
[355524472,1741236652481,-500.0,0.00041369,120]
[355524473,1741236652490,-500.0,0.00041369,120]
[355524474,1741236652500,-1946.66,0.00041369,120]
[355524475,1741236652509,-500.0,0.00041369,120]
[355524476,1741236652519,-1227.25,0.00041369,120]
[355524477,1741236652529,-500.0,0.00041369,120]
[355524478,1741236652539,-500.0,0.00041369,120]
[355524479,1741236652548,-500.0,0.00041369,120]
[355524480,1741236652557,-500.0,0.00041369,120]
[355524481,1741236652571,-500.0,0.00041369,120]
[355524482,1741236652581,-500.0,0.00041369,120]
[355524483,1741236652591,-500.0,0.00041369,120]
[355524484,1741236652600,-500.0,0.00041369,120]
[355524485,1741236652609,-500.0,0.00041369,120]
[355524486,1741236652619,-2970.42,0.00041369,120]
[355524487,1741236652629,-500.0,0.00041369,120]
[355524488,1741236652639,-500.0,0.00041369,120]
[355524489,1741236652648,-500.0,0.00041369,120]
[355524490,1741236652658,-500.0,0.00041369,120]
[355524491,1741236652667,-103752.58,0.00041369,7]
[355524492,1741236652676,-500.0,0.00041369,120]
[355524493,1741236652686,-500.0,0.00041369,120]
[355524494,1741236652695,-500.0,0.00041369,120]
[355524495,1741236652705,-500.0,0.00041369,120]
[355524496,1741236652714,-513.2,0.00041369,120]
[355524497,1741236652723,-500.0,0.00041369,120]
[355524498,1741236652733,-500.0,0.00041369,120]
[355524499,1741236652742,-500.0,0.00041369,120]
[355524500,1741236652751,-500.0,0.00041369,120]
[355524501,1741236652761,-2321.69,0.00041369,120]
[355524502,1741236652771,-500.0,0.00041369,120]
[355524503,1741236652781,-500.0,0.00041369,120]
[355524504,1741236652790,-500.0,0.00041369,120]
[355524505,1741236652799,-500.0,0.00041369,120]
[355524506,1741236652809,-254.73431476,0.00041369,120]
[355524507,1741236652819,-715.81,0.00041369,120]
[355524508,1741236652829,-722.25,0.00041369,120]
[355524509,1741236652838,-502.16308457,0.00041369,120]
[355524510,1741236652847,-2221.56,0.00041369,10]
[355524511,1741236652857,-285.491968,0.00041369,120]
[355524512,1741236652867,-285.491968,0.00041369,120]
[355524513,1741236652876,-500.0,0.00041369,120]
[355524514,1741236652886,-500.0,0.00041369,120]
[355524515,1741236652895,-285.491968,0.00041369,120]
[355524516,1741236652905,-500.0,0.00041369,120]
[355524517,1741236652913,-500.0,0.00041369,120]
[355524518,1741236652923,-285.491968,0.00041369,120]
[355524519,1741236652932,-500.0,0.00041369,120]
[355524520,1741236652942,-500.0,0.00041369,120]
[355524521,1741236652951,-285.491968,0.00041369,120]
[355524522,1741236652961,-285.491962,0.00041369,120]
[355524523,1741236652970,-500.0,0.00041369,120]
[355524524,1741236652985,-500.0,0.00041369,120]
[355524525,1741236652997,-528.98395292,0.00041369,120]
[355524526,1741236653008,-500.0,0.00041369,120]
[355524527,1741236653018,-500.0,0.00041369,120]
[355524528,1741236653029,-500.0,0.00041369,120]
[355524529,1741236653039,-1068.41,0.00041369,120]
[355524530,1741236653049,-500.0,0.00041369,120]
[355524531,1741236653061,-500.0,0.00041369,120]
[355524532,1741236653070,-3214.02,0.00041369,120]
[355524533,1741236653080,-500.0,0.00041369,120]
[355524534,1741236653089,-500.0,0.00041369,120]
[355524535,1741236653099,-500.0,0.00041369,120]
[355524536,1741236653108,-500.0,0.00041369,120]
[355524537,1741236653117,-500.0,0.00041369,120]
[355524538,1741236653126,-500.0,0.00041369,30]
[355524539,1741236653135,-500.0,0.00041369,120]
[355524540,1741236653145,-200.0,0.00041369,7]
[355524541,1741236653155,-500.0,0.00041369,120]
[355524542,1741236653165,-500.0,0.00041369,120]
[355524543,1741236653174,-500.0,0.00041369,120]
[355524544,1741236653185,-500.0,0.00041369,120]
[355524545,1741236653195,-500.0,0.00041369,120]
[355524546,1741236653206,-500.0,0.00041369,120]
[355524547,1741236653220,-500.0,0.00041369,120]
[355524548,1741236653230,-980.61,0.00041369,120]
[355524549,1741236653239,-500.0,0.00041369,120]
[355524550,1741236653248,-500.0,0.00041369,120]
[355524551,1741236653258,-500.0,0.00041369,120]
[355524552,1741236653269,-1005.88,0.00041369,120]
[355524553,1741236653279,-500.0,0.00041369,120]
[355524554,1741236653289,-5313.78,0.00041369,120]
[355524555,1741236653300,-500.0,0.00041369,120]
[355524556,1741236653310,-500.0,0.00041369,120]
[355524557,1741236653319,-500.0,0.00041369,120]
[355524558,1741236653329,-500.0,0.00041369,120]
[355524559,1741236653338,-500.0,0.00041369,120]
[355524560,1741236653348,-500.0,0.00041369,120]
[355524561,1741236653357,-500.0,0.00041369,120]
[355524562,1741236653367,-500.0,0.00041369,120]
[355524563,1741236653377,-500.0,0.00041369,120]
[355524564,1741236653386,-500.0,0.00041369,120]
[355524565,1741236653395,-500.0,0.00041369,120]
[355524566,1741236653405,-500.0,0.00041369,120]
[355524567,1741236653419,-11779.15,0.00041369,30]
[355524568,1741236653433,-500.0,0.00041369,120]
[355524569,1741236653446,-500.0,0.00041369,120]
[355524570,1741236653455,-500.0,0.00041369,120]
[355524571,1741236653465,-500.0,0.00041369,120]
[355524572,1741236653475,-944.28,0.00041369,120]
[355524573,1741236653485,-500.0,0.00041369,120]
[355524574,1741236653495,-500.0,0.00041369,120]
[355524575,1741236653504,-500.0,0.00041369,120]
[355524576,1741236653513,-1401.17,0.00041369,120]
[355524577,1741236653522,-500.0,0.00041369,120]
[355524578,1741236653532,-500.0,0.00041369,120]
[355524579,1741236653541,-500.0,0.00041369,120]
[355524580,1741236653551,-500.0,0.00041369,120]
[355524581,1741236653560,-730.86,0.00041369,120]
[355524582,1741236653569,-511.66903973,0.00041369,120]
[355524583,1741236653579,-3141.13,0.00041369,120]
[355524584,1741236653588,-500.0,0.00041369,120]
[355524585,1741236653597,-511.0316201,0.00041369,120]
[355524586,1741236653606,-500.0,0.00041369,120]
[355524587,1741236653615,-500.0,0.00041369,120]
[355524588,1741236653624,-713.86,0.00041369,120]
[355524589,1741236653634,-787.37,0.00041369,120]
[355524590,1741236653643,-500.0,0.00041369,120]
[355524591,1741236653652,-500.0,0.00041369,120]
[355524592,1741236653662,-500.0,0.00041369,120]
[355524593,1741236653672,-500.0,0.00041369,120]
[355524594,1741236653681,-500.0,0.00041369,120]
[355524595,1741236653690,-500.0,0.00041369,120]
[355524596,1741236653701,-518.11,0.00041369,120]
[355524597,1741236653712,-500.0,0.00041369,120]
[355524598,1741236653722,-500.0,0.00041369,120]
[355524599,1741236653732,-500.0,0.00041369,120]
[355524600,1741236653741,-500.0,0.00041369,120]
[355524601,1741236653750,-501.51,0.00041369,120]
[355524602,1741236653760,-500.0,0.00041369,120]
[355524603,1741236653769,-1854.89,0.00041369,120]
[355524604,1741236653781,-712.44,0.00041369,120]
[355524605,1741236653790,-500.0,0.00041369,120]
[355524606,1741236653801,-500.0,0.00041369,120]
[355524607,1741236653811,-500.0,0.00041369,120]
[355524608,1741236653820,-506.65819664,0.00041369,120]
[355524609,1741236653830,-500.0,0.00041369,120]
[355524610,1741236653840,-500.0,0.00041369,120]
[355524611,1741236653851,-242.96379155,0.00041369,15]
[355524612,1741236653860,-500.0,0.00041369,120]
[355524613,1741236653871,-500.0,0.00041369,120]
[355524614,1741236653882,-500.0,0.00041369,120]
[355524615,1741236653894,-500.0,0.00041369,120]
[355524616,1741236653905,-500.0,0.00041369,120]
[355524617,1741236653915,-500.0,0.00041369,120]
[355524618,1741236653924,-500.0,0.00041369,120]
[355524619,1741236653934,-990.1,0.00041369,120]
[355524620,1741236653943,-500.0,0.00041369,120]
[355524621,1741236653953,-500.0,0.00041369,120]
[355524622,1741236653962,-827.14,0.00041369,120]
[355524623,1741236653971,-500.0,0.00041369,120]
[355524624,1741236654063,-3245.93,0.00041369,120]
[355524625,1741236654085,-500.0,0.00041369,120]
[355524626,1741236654094,-500.0,0.00041369,120]
[355524627,1741236654104,-507.49396522,0.00041369,120]
[355524628,1741236654114,-327.12070025,0.00041369,120]
[355524629,1741236654123,-500.0,0.00041369,120]
[355524630,1741236654133,-500.0,0.00041369,120]
[355524631,1741236654143,-500.0,0.00041369,120]
[355524632,1741236654153,-7517.64,0.00041369,120]
[355524633,1741236654162,-500.0,0.00041369,120]
[355524634,1741236654172,-500.0,0.00041369,120]
[355524635,1741236654181,-1019.51,0.00041369,120]
[355524636,1741236654192,-500.0,0.00041369,120]
[355524637,1741236654201,-1386.67,0.00041369,120]
[355524638,1741236654215,-500.0,0.00041369,120]
[355524639,1741236654225,-500.0,0.00041369,120]
[355524640,1741236654235,-500.0,0.00041369,120]
[355524641,1741236654244,-506.91981594,0.00041369,120]
[355524642,1741236654254,-500.0,0.00041369,120]
[355524643,1741236654264,-500.0,0.00041369,120]
[355524644,1741236654273,-2381.55,0.00041369,120]
[355524645,1741236654284,-500.0,0.00041369,120]
[355524646,1741236654293,-500.0,0.00041369,120]
[355524647,1741236654304,-500.0,0.00041369,120]
[355524648,1741236654314,-500.0,0.00041369,120]
[355524649,1741236654324,-500.0,0.00041369,120]
[355524650,1741236654333,-515.99807242,0.00041369,120]
[355524651,1741236654343,-618.25,0.00041369,120]
[355524652,1741236654353,-500.0,0.00041369,120]
[355524653,1741236654362,-547.0283876,0.00041369,120]
[355524654,1741236654371,-8108.4,0.00041369,14]
[355524655,1741236654381,-500.0,0.00041369,120]
[355524656,1741236654390,-506.92639116,0.00041369,120]
[355524657,1741236654399,-1138.81,0.00041369,120]
[355524658,1741236654408,-500.0,0.00041369,120]
[355524659,1741236654417,-500.0,0.00041369,120]
[355524660,1741236654427,-848.78,0.00041369,120]
[355524661,1741236654436,-500.0,0.00041369,120]
[355524662,1741236654445,-500.0,0.00041369,120]
[355524663,1741236654455,-500.0,0.00041369,120]
[355524664,1741236654464,-500.0,0.00041369,120]
[355524665,1741236654473,-500.0,0.00041369,120]
[355524666,1741236654482,-500.0,0.00041369,120]
[355524667,1741236654492,-500.0,0.00041369,120]
[355524668,1741236654501,-500.0,0.00041369,120]
[355524669,1741236654510,-588.01,0.00041369,120]
[355524670,1741236654519,-1444.06,0.00041369,120]
[355524671,1741236654528,-1109.87,0.00041369,120]
[355524672,1741236654538,-519.09363487,0.00041369,120]
[355524673,1741236654547,-500.0,0.00041369,120]
[355524674,1741236654556,-500.0,0.00041369,120]
[355524675,1741236654565,-500.0,0.00041369,120]
[355524676,1741236654574,-500.0,0.00041369,120]
[355524677,1741236654586,-518.778212,0.00041369,120]
[355524678,1741236654595,-500.0,0.00041369,120]
[355524679,1741236654605,-2307.5,0.00041369,120]
[355524680,1741236654616,-500.0,0.00041369,120]
[355524681,1741236654627,-500.0,0.00041369,120]
[355524682,1741236654637,-500.0,0.00041369,120]
[355524683,1741236654646,-500.0,0.00041369,120]
[355524684,1741236654656,-500.0,0.00041369,120]
[355524685,1741236654667,-500.0,0.00041369,120]
[355524686,1741236654677,-500.0,0.00041369,120]
[355524687,1741236654686,-500.0,0.00041369,120]
[355524688,1741236654696,-500.0,0.00041369,120]
[355524689,1741236654706,-503.7492145,0.00041369,120]
[355524690,1741236654716,-757.77,0.00041369,120]
[355524691,1741236654725,-500.0,0.00041369,120]
[355524692,1741236654735,-500.0,0.00041369,120]
[355524693,1741236654744,-798.26,0.00041369,120]
[355524694,1741236654754,-500.0,0.00041369,120]
[355524695,1741236654764,-1018.48,0.00041369,120]
[355524696,1741236654774,-500.0,0.00041369,120]
[355524697,1741236654785,-500.0,0.00041369,120]
[355524698,1741236654794,-500.0,0.00041369,120]
[355524699,1741236654804,-500.0,0.00041369,120]
[355524700,1741236654813,-500.0,0.00041369,120]
[355524701,1741236654823,-1027.27,0.00041369,120]
[355524702,1741236654832,-500.0,0.00041369,120]
[355524703,1741236654842,-1353.57,0.00041369,120]
[355524704,1741236654851,-500.0,0.00041369,120]
[355524705,1741236654860,-273.73595725,0.00041369,120]
[355524706,1741236654869,-1637.53,0.00041369,120]
[355524707,1741236654879,-500.0,0.00041369,120]
[355524708,1741236654889,-500.0,0.00041369,120]
[355524709,1741236654898,-657.86,0.00041369,120]
[355524710,1741236654908,-500.0,0.00041369,120]
[355524711,1741236654917,-500.0,0.00041369,120]
[355524712,1741236654927,-500.0,0.00041369,120]
[355524713,1741236654937,-500.0,0.00041369,120]
[355524714,1741236654947,-894.89,0.00041369,120]
[355524715,1741236654956,-500.0,0.00041369,120]
[355524716,1741236654966,-445.60478136,0.00041369,120]
[355524717,1741236654975,-500.0,0.00041369,120]
[355524718,1741236654986,-500.0,0.00041369,120]
[355524719,1741236654996,-500.0,0.00041369,120]
[355524720,1741236655006,-500.0,0.00041369,120]
[355524721,1741236655015,-501.35583941,0.00041369,120]
[355524722,1741236655026,-2701.48,0.00041369,120]
[355524723,1741236655035,-693.87,0.00041369,120]
[355524724,1741236655045,-500.0,0.00041369,120]
[355524725,1741236655054,-500.0,0.00041369,120]
[355524726,1741236655063,-500.0,0.00041369,120]
[355524727,1741236655073,-173.62154156,0.00041369,120]
[355524728,1741236655082,-1253.07,0.00041369,120]
[355524729,1741236655091,-500.0,0.00041369,120]
[355524730,1741236655100,-500.0,0.00041369,120]
[355524731,1741236655109,-500.0,0.00041369,120]
[355524732,1741236655119,-500.0,0.00041369,120]
[355524733,1741236655128,-3603.8,0.00041369,120]
[355524734,1741236655138,-500.0,0.00041369,120]
[355524735,1741236655148,-500.0,0.00041369,120]
[355524736,1741236655157,-500.0,0.00041369,120]
[355524737,1741236655166,-500.0,0.00041369,120]
[355524738,1741236655175,-500.0,0.00041369,120]
[355524739,1741236655184,-500.0,0.00041369,120]
[355524740,1741236655194,-3543.70342388,0.00041369,120]
[355524741,1741236656470,-500.0,0.00041095,120]
[355524742,1741236656485,-500.0,0.00041095,120]
[355524743,1741236656500,-500.0,0.00041095,120]
[355524744,1741236656515,-500.0,0.00041095,120]
[355524745,1741236656529,-521.74980937,0.00041095,120]
[355524746,1741236656544,-500.0,0.00041095,120]
[355524747,1741236656559,-504.36474146,0.00041095,120]
[355524748,1741236656573,-500.0,0.00041095,120]
[355524749,1741236656589,-3424.12657612,0.00041369,120]
[355524750,1741236656603,-550.02382661,0.00041369,120]
[355524751,1741236656618,-500.0,0.00041369,120]
[355524752,1741236656632,-365.31812312,0.00041369,120]
[355524753,1741236656650,-134.68187688,0.00041369,120]
[355524754,1741236656671,-503.80994734,0.00041369,120]
[355524755,1741236656684,-772.02,0.00041369,120]
[355524756,1741236656694,-500.0,0.00041369,120]
[355524757,1741236656703,-500.0,0.00041369,120]
[355524758,1741236656713,-500.0,0.00041369,120]
[355524759,1741236656722,-504.79583006,0.00041369,120]
[355524760,1741236656732,-500.0,0.00041369,120]
[355524761,1741236656741,-500.0,0.00041369,120]
[355524762,1741236656751,-500.0,0.00041369,120]
[355524763,1741236656761,-8296.36,0.00041369,120]
[355524764,1741236656770,-500.0,0.00041369,120]
[355524765,1741236656780,-500.0,0.00041369,120]
[355524766,1741236656791,-500.0,0.00041369,120]
[355524767,1741236656800,-500.0,0.00041369,120]
[355524768,1741236656810,-500.0,0.00041369,120]
[355524769,1741236656820,-500.0,0.00041369,120]
[355524770,1741236656829,-500.0,0.00041369,120]
[355524771,1741236656839,-726.04,0.00041369,120]
[355524772,1741236656848,-500.0,0.00041369,120]
[355524773,1741236656857,-508.82827902,0.00041369,120]
[355524774,1741236657077,-500.0,0.00041369,120]
[355524775,1741236657100,-500.0,0.00041369,120]
[355524776,1741236657116,-500.0,0.00041369,120]
[355524777,1741236657129,-500.0,0.00041369,120]
[355524778,1741236657138,-500.0,0.00041369,120]
[355524779,1741236657148,-500.0,0.00041369,120]
[355524780,1741236657157,-516.50187108,0.00041369,120]
[355524781,1741236657166,-500.0,0.00041369,120]
[355524782,1741236657175,-500.0,0.00041369,120]
[355524783,1741236657185,-500.0,0.00041369,120]
[355524784,1741236657194,-500.0,0.00041369,45]
[355524785,1741236657206,-560.04,0.00041369,120]
[355524786,1741236657218,-500.0,0.00041369,120]
[355524787,1741236657227,-500.0,0.00041369,120]
[355524788,1741236657235,-506.71083535,0.00041369,120]
[355524789,1741236657245,-500.0,0.00041369,120]
[355524790,1741236657255,-500.0,0.00041369,120]
[355524791,1741236657265,-900.38,0.00041369,120]
[355524792,1741236657274,-500.0,0.00041369,120]
[355524793,1741236657284,-507.60709697,0.00041369,120]
[355524794,1741236657296,-500.0,0.00041369,120]
[355524795,1741236657307,-6756.42,0.00041369,120]
[355524796,1741236657317,-500.0,0.00041369,120]
[355524797,1741236657326,-11628.91,0.00041369,120]
[355524798,1741236657335,-1085.05,0.00041369,120]
[355524799,1741236657345,-7179.59,0.00041369,120]
[355524800,1741236657354,-500.0,0.00041369,120]
[355524801,1741236657364,-504.44663464,0.00041369,120]
[355524802,1741236657373,-500.0,0.00041369,120]
[355524803,1741236657382,-500.0,0.00041369,120]
[355524804,1741236657391,-500.0,0.00041369,120]
[355524805,1741236657400,-500.0,0.00041369,120]
[355524806,1741236657410,-500.0,0.00041369,120]
[355524807,1741236657419,-961.32,0.00041369,120]
[355524808,1741236657428,-500.0,0.00041369,120]
[355524809,1741236657437,-500.0,0.00041369,120]
[355524810,1741236657446,-500.0,0.00041369,120]
[355524811,1741236657456,-500.0,0.00041369,120]
[355524812,1741236657465,-500.0,0.00041369,120]
[355524813,1741236657474,-508.36163342,0.00041369,120]
[355524814,1741236657484,-500.0,0.00041369,120]
[355524815,1741236657493,-500.0,0.00041369,120]
[355524816,1741236657503,-500.0,0.00041369,120]
[355524817,1741236657512,-500.0,0.00041369,120]
[355524818,1741236657521,-500.0,0.00041369,120]
[355524819,1741236657531,-500.0,0.00041369,120]
[355524820,1741236657540,-500.0,0.00041369,120]
[355524821,1741236657549,-500.0,0.00041369,120]
[355524822,1741236657558,-500.0,0.00041369,120]
[355524823,1741236657568,-1120.98,0.00041369,120]
[355524824,1741236657577,-500.0,0.00041369,120]
[355524825,1741236657586,-844.5,0.00041369,120]
[355524826,1741236657595,-500.0,0.00041369,120]
[355524827,1741236657605,-4.68571357,0.00041369,120]
[355524828,1741236657616,-424.83378532,0.00041369,120]
[355524829,1741236657627,-456.47050111,0.00041369,120]
[355524830,1741236657637,-526.35436592,0.00041369,120]
[355524831,1741236657647,-500.0,0.00041369,120]
[355524832,1741236657656,-500.0,0.00041369,120]
[355524833,1741236657665,-500.0,0.00041369,21]
[355524834,1741236657674,-500.0,0.00041369,120]
[355524835,1741236657683,-500.0,0.00041369,120]
[355524836,1741236657693,-4373.37,0.00041369,120]
[355524837,1741236657702,-500.0,0.00041369,120]
[355524838,1741236657711,-500.0,0.00041369,120]
[355524839,1741236657720,-500.0,0.00041369,120]
[355524840,1741236657730,-500.0,0.00041369,120]
[355524841,1741236657741,-872.03195702,0.00041369,90]
[355524842,1741236658257,-500.0,0.00041095,120]
[355524843,1741236658267,-500.0,0.00041095,120]
[355524844,1741236658276,-500.0,0.00041095,120]
[355524845,1741236658286,-500.0,0.00041095,120]
[355524846,1741236658295,-127.96804298,0.00041369,90]
[355524847,1741236658305,-818.88,0.00041369,120]
[355524848,1741236658315,-587.22,0.00041369,120]
[355524849,1741236658324,-500.0,0.00041369,2]
[355524850,1741236658334,-500.0,0.00041369,120]
[355524851,1741236658344,-500.0,0.00041369,120]
[355524852,1741236658354,-500.0,0.00041369,120]
[355524853,1741236658364,-500.0,0.00041369,120]
[355524854,1741236658374,-3219.68,0.00041369,120]
[355524855,1741236658386,-500.0,0.00041369,120]
[355524856,1741236658395,-594.62,0.00041369,120]
[355524857,1741236658404,-500.0,0.00041369,120]
[355524858,1741236658415,-500.0,0.00041369,120]
[355524859,1741236658424,-500.0,0.00041369,120]
[355524860,1741236658433,-596.56,0.00041369,120]
[355524861,1741236658442,-500.0,0.00041369,120]
[355524862,1741236658451,-34.78000823,0.00041369,120]
[355524863,1741236658463,-465.21999177,0.00041369,120]
[355524864,1741236658473,-500.0,0.00041369,120]
[355524865,1741236658482,-314.21,0.00041369,120]
[355524866,1741236658491,-178.67393402,0.00041373,10]
[355524867,1741236658501,-500.0,0.00041615,120]
[355524868,1741236658510,-500.0,0.00041643,120]
[355524869,1741236658520,-500.0,0.00041643,30]
[355524870,1741236658529,-253.7401122,0.00041643,120]
[355524871,1741236658538,-500.0,0.00041643,120]
[355524872,1741236658548,-500.0,0.00041643,120]
[355524873,1741236658557,-500.0,0.00041643,120]
[355524874,1741236658567,-367.33294468,0.00041643,120]
[355524875,1741236658578,-500.0,0.00041643,120]
[355524876,1741236658587,-500.0,0.00041643,120]
[355524877,1741236658596,-500.0,0.00041643,120]
[355524878,1741236658606,-230.62235793,0.00041643,120]
[355524879,1741236658615,-183.26525961,0.00041643,120]
[355524880,1741236658624,-500.0,0.00041643,120]
[355524881,1741236658634,-515.44759187,0.00041643,120]
[355524882,1741236658643,-500.0,0.00041643,120]
[355524883,1741236658652,-500.0,0.00041643,120]
[355524884,1741236658661,-500.0,0.00041643,120]
[355524885,1741236658671,-545.80403588,0.00041643,120]
[355524886,1741236658681,-651.67,0.00041643,120]
[355524887,1741236658690,-569.67039487,0.00041643,120]
[355524888,1741236658700,-500.0,0.00041643,120]
[355524889,1741236658709,-500.0,0.00041643,120]
[355524890,1741236658719,-500.0,0.00041643,120]
[355524891,1741236658728,-500.0,0.00041643,120]
[355524892,1741236658738,-500.0,0.00041643,120]
[355524893,1741236658747,-362.62022847,0.00041643,120]
[355524894,1741236659346,-500.0,0.00041095,120]
[355524895,1741236659356,-291.2784889,0.00041095,120]
[355524896,1741236659367,-262.5715111,0.00041095,120]
[355524897,1741236659377,-500.0,0.00041095,120]
[355524898,1741236659386,-500.0,0.00041095,120]
[355524899,1741236659396,-500.0,0.00041369,120]
[355524900,1741236659405,-553.85,0.00041369,120]
[355524901,1741236659415,-500.0,0.00041369,120]
[355524902,1741236659424,-500.0,0.00041369,120]
[355524903,1741236659433,-137.37977153,0.00041643,120]
[355524904,1741236659442,-500.0,0.00041643,120]
[355524905,1741236659450,-500.0,0.00041643,120]
[355524906,1741236659459,-430.42270641,0.00041643,120]
[355524907,1741236659467,-500.0,0.00041643,120]
[355524908,1741236659476,-500.0,0.00041643,120]
[355524909,1741236659485,-500.0,0.00041643,120]
[355524910,1741236659493,-504.74113161,0.00041643,120]
[355524911,1741236659501,-500.0,0.00041643,120]
[355524912,1741236659509,-500.0,0.00041643,120]
[355524913,1741236659518,-500.0,0.00041643,120]
[355524914,1741236659526,-510.61776824,0.00041643,120]
[355524915,1741236659536,-500.0,0.00041643,120]
[355524916,1741236659545,-541.2908999,0.00041643,5]
[355524917,1741236659554,-505.92675127,0.00041643,120]
[355524918,1741236659564,-507.56963508,0.00041643,120]
[355524919,1741236659573,-772.47,0.00041643,120]
[355524920,1741236659583,-511.9756627,0.00041643,120]
[355524921,1741236659592,-500.0,0.00041643,120]